Cogmind - Beta 16 @@@ ROGUE MODE // 2025.11.08 @ 00:49:35 Player: RHAHI Result: Destroyed by H3-630(R) with Subdweller Beam Cannon Performance ------------- Evolutions (0) 0 Regions Visited (3) 600 Robots Destroyed (31) 155 Value Destroyed (895) 895 Prototype IDs (15) 300 Alien Tech Used (0) 0 Bonus (24) 24 TOTAL SCORE: 1974 Bonus ------- Follower Combat Kills 65 Friendly Fire -41 Cogmind --------- Core Integrity 0/250 Matter 258/300 Energy 160/160 System Corruption 0% Temperature Cool (9) Movement Treading (240) Ox1 Location -10/Subcaves Parts ------- > --- POWER (1+1) ------ Light Nuclear Core > --- PROPULSION (2+2) - Light Treads Light Treads > --- UTILITY (2+2) ---- Scrap Shield (++) Tower Shield > --- WEAPON (2+2) ----- Subdweller Beam Cannon (+) Grenade Launcher (+) Rocket Launcher Makeshift Hammer > --- INVENTORY (5) ---- Flightbrick EM Pulse Cannon Peak State ------------ > --- POWER ------------ Light Nuclear Core > --- PROPULSION ------- Light Treads Light Treads > --- UTILITY ---------- Scrap Shield Tower Shield > --- WEAPON ----------- Subdweller Beam Cannon Grenade Launcher Rocket Launcher Makeshift Hammer > --- INVENTORY -------- Flightbrick Experimental Sensor Array [Rating: 42] Favorites ----------- Power Ion Engine Engine Ion Engine Power Core Light Nuclear Core Propulsion Light Treads Treads Light Treads Leg VSS Leg Wheel Compact Wheel Utility Large Storage Unit Device Improved Terrain Scanner Storage Large Storage Unit Protection Scrap Shield Weapon Light Assault Rifle Energy Gun EM Pulse Gun Energy Cannon EM Pulse Cannon Ballistic Gun Light Assault Rifle Launcher Rocket Launcher Special Weapon Mining Laser Impact Weapon Makeshift Hammer Build | -11 -10 -10 -10 ------- Run | Yrd Mat Min Sub Slots Evolved . | . . . . Power . | . . . . Propulsion . | . . . . Utility . | . . . . Weapon . | . . . . Parts Attached 38 | 7 6 17 8 Power 5 | 1 . 2 2 Engine 4 | 1 . 2 1 Core 1 | . . . 1 Reactor . | . . . . Propulsion 9 | 2 . 7 . Treads 2 | . . 2 . Leg 2 | . . 2 . Wheel 5 | 2 . 3 . Hover . | . . . . Flight . | . . . . Utility 13 | 2 4 4 3 Device 7 | 1 3 3 . Storage 2 | 1 1 . . Processor . | . . . . Hackware . | . . . . Protection 4 | . . 1 3 Artifact . | . . . . Weapon 11 | 2 2 4 3 Energy Gun 1 | . 1 . . Energy Cannon 2 | . . 1 1 Ballistic Gun 2 | 2 . . . Ballistic Cannon . | . . . . Launcher 3 | . . 2 1 Special Weapon 2 | . 1 1 . Impact Weapon 1 | . . . 1 Slashing Weapon . | . . . . Piercing Weapon . | . . . . Special Melee Weapon . | . . . . Unidentified Prototypes 1 | . . 1 . Parts Lost 6 | . 1 4 1 Power 2 | . . 1 1 Propulsion 1 | . . 1 . Utility 1 | . . 1 . Weapon 2 | . 1 1 . Highest Loss Streak 4 | . 1 4 1 To Critical Strikes . | . . . . Average Backups 9 | 6 11 13 7 Power . | . 1 . . Propulsion 1 | 3 4 2 . Utility 5 | . 3 8 4 Weapon 2 | 1 2 1 1 Tool/Special . | . . . . Unused Backups 13 | . . 3 10 Power 1 | . . 1 . Propulsion 3 | . . 1 2 Utility 7 | . . 1 6 Weapon 2 | . . . 2 Tool/Special . | . . . . Average Slot Usage (%) 92 | . 97 99 85 Engine 11 | . 13 14 9 Core 1 | . . . 3 Treads 15 | . . 9 25 Wheel 10 | . 26 18 . Device 8 | . 14 12 4 Storage 9 | . 14 14 5 Protection 5 | . . 1 9 Energy Cannon 3 | . . 4 4 Ballistic Gun 8 | . 21 13 . Launcher 9 | . . 8 13 Special Weapon 1 | . 1 . 3 Impact Weapon 2 | . . . 5 Peak Build Rating 42 | 10 10 19 42 Average Rating 15 | 5 8 12 21 On Entrance 8 | . 10 8 14 Avg Prop Armor Cover (%) 14 | . . 14 . Naked Turns . | . . . . Heaviest Build 79 | 14 30 33 79 Greatest Support 40 | 26 26 40 40 Greatest Overweight (x) 10 | 4 9 10 1 Average Overweight (x) . | 3 . . . Largest Inventory Capacity 15 | 8 15 15 15 Average Capacity 11 | 7 12 15 9 Most Carried 15 | 8 15 15 15 Average Carried 10 | 6 11 13 8 Final Capacity 15 | 8 15 15 5 Final Carried 15 | 8 15 15 5 Class Distribution -------------------- 91% | Mutant 8% | Derelict-Tank Dominant Class ---------------- Mutant | -10/Materials Mutant | -10/Mines Mutant | -10/Subcaves Resources | -11 -10 -10 -10 ----------- Run | Yrd Mat Min Sub Matter Collected 1423 | 338 291 527 267 Remotely . | . . . . Salvage Created 923 | 210 197 119 397 Parts 56 | 16 13 11 16 Haulers Intercepted . | . . . . Recyclers Shooed . | . . . . Parts Field Recycled . | . . . . Retrieved Matter . | . . . . Parts Self-Destructed 2 | . . . 2 Prevented . | . . . . Parts Restored . | . . . . Kills | -11 -10 -10 -10 ------- Run | Yrd Mat Min Sub Combat Hostiles Destroyed 22 | . 4 6 12 Guns 6 | . 4 2 . AOE 12 | . . 4 8 Classes Destroyed 6 | 2 2 1 1 Tunneler 7 | 6 . 1 . Recycler 1 | 1 . . . Watcher 1 | . 1 . . Swarmer 3 | . . 3 . Grunt 7 | . 4 3 . Subdweller 12 | . . . 12 Best Kill Streak 3 | 2 2 3 3 Combat Bots Only 3 | . 2 3 3 Max Kills in Single Turn 3 | 1 1 3 2 Gunslinging . | . . . . Exploded 3 | . . 3 2 Melee . | . . . . Uniques/NPCs Destroyed . | . . . . Combat | -11 -10 -10 -10 -------- Run | Yrd Mat Min Sub Hostile Shots Fired 108 | . 49 23 36 Missed 35 | . 18 5 12 Hits 73 | . 31 18 24 Projectile 73 | . 31 18 24 Critical Strikes 1 | . . 1 . Damage Taken 1227 | . 323 331 573 Core 252 | . 98 105 49 Absorbed by Shields . | . . . . Regen/Repaired (Parts) 87 | . 87 . . Core Remaining (%) 100 | 100 . . . Volleys Fired 97 | 17 27 40 13 Largest 2 | 2 2 2 2 Hottest 120 | 40 120 120 100 Shots Fired 145 | 34 51 45 15 Gun 121 | 34 49 38 . Cannon 4 | . . 1 3 Launcher 13 | . . 2 11 Special 7 | . 2 4 1 Kinetic 109 | 34 37 38 . Thermal 7 | . 2 4 1 Explosive 13 | . . 2 11 Electromagnetic 16 | . 12 1 3 Robot Hit Streak 12 | 12 7 6 9 Robot Miss Streak 5 | 1 5 2 . Penetration Max . | . . . . Secondary Targets . | . . . . Shots Hit Robots 97 | 23 27 30 17 Core Hits 46 | 9 10 11 16 Critical Kills 1 | . . 1 . Critical Parts Destroyed 3 | . . . 3 Critical Strikes 4 | . . 1 3 Destroy 1 | . . 1 . Smash 3 | . . . 3 Melee Attacks 17 | . . . 17 Impact 17 | . . . 17 Slashing . | . . . . Piercing . | . . . . Sneak Attacks . | . . . . Combat Hostiles . | . . . . Follow-up Attacks . | . . . . Damage Inflicted 2528 | 254 324 472 1478 Guns 807 | 254 324 229 . Cannons 89 | . . 26 63 Explosions 1172 | . . 193 979 Melee 436 | . . . 436 Ramming . | . . . . Kinetic 694 | 254 211 229 . Thermal 24 | . . 24 . Explosive 1172 | . . 193 979 Electromagnetic 202 | . 113 26 63 Impact 436 | . . . 436 Slashing . | . . . . Piercing . | . . . . Highest Corruption . | . . . . Average Corruption . | . . . . Corruption Purged . | . . . . Corruption Blocked . | . . . . Overload Shots . | . . . . Overflow Damage 249 | . . . 249 Projectiles . | . . . . Explosions . | . . . . Melee 249 | . . . 249 Knockbacks 5 | . . . 5 Impact 5 | . . . 5 Kinetic . | . . . . Secondary . | . . . . Self-Inflicted Damage 99 | . . 70 29 Shots 5 | . . 3 2 Rammed . | . . . . Targets Rammed . | . . . . Kicked . | . . . . Crushed . | . . . . Highest Temperature 103 | . 42 103 . Average Temperature 29 | . 19 37 . Received Heat Transfer 375 | . 114 168 93 Siege Activations . | . . . . Martial Activations . | . . . . Shielding Activations . | . . . . Robots Disrupted . | . . . . Combat Hostiles . | . . . . Robots Corrupted 4 | . . . 4 Combat Hostiles 4 | . . . 4 Parts Fried . | . . . . Impact Corruptions 6 | . . . 6 Robots Melted . | . . . . Combat Hostiles . | . . . . Parts Melted 1 | . . . 1 Heat Transferred 50 | . . 50 . Parts Sabotaged . | . . . . Parts Stolen . | . . . . Parts Stripped . | . . . . Power Chain Reactions . | . . . . Alert | -11 -10 -10 -10 ------- Run | Yrd Mat Min Sub Maximum Alert Level . | . . . . Low Security (%) 100 | 100 100 100 . Level 1 . | . . . . Level 2 . | . . . . Level 3 . | . . . . Level 4 . | . . . . Level 5 . | . . . . High Security . | . . . . Max Security . | . . . . Peak Influence 163 | 10 89 163 . Initial . | . . . . Average 29 | 1 33 35 . Influence Increases 545 | 35 223 287 . Destroy 0b10 Robot/C 220 | . 80 140 . Destroy 0b10 Robot/NC 50 | 35 5 10 . Destroy Leader 52 | . 22 30 . Allied During Kill 5 | . . 5 . Successful Hack 34 | . 25 9 . Disable Machine 75 | . 15 60 . Destroy Structure 34 | . 1 33 . Lose Combat Pursuer 75 | . 75 . . Influence Decreases 545 | 35 223 287 . Time Decay 493 | 35 216 242 . Lost Part 47 | . 7 40 . Lost Ally 5 | . . 5 . Squads Dispatched 4 | . 3 1 . Investigation 2 | . 1 1 . Extermination . | . . . . Reinforcement 2 | . 2 . . Assault . | . . . . Garrison . | . . . . Intercept . | . . . . Searches Triggered . | . . . . Construction Impeded . | . . . . Haulers Reinforced . | . . . . Active Scanning Responses . | . . . . Cargo Convoy Interrupts . | . . . . Stealth | -11 -10 -10 -10 --------- Run | Yrd Mat Min Sub Distress Signals 1 | . 1 . . Communications Jammed . | . . . . Distress Signals . | . . . . Times Spotted 48 | . 25 10 13 Peak Tracking Total 6 | . 6 3 3 Tactical Retreats 3 | . 3 . . Traps | -11 -10 -10 -10 ------- Run | Yrd Mat Min Sub Traps Triggered 8 | . 7 . 1 Indirectly . | . . . . Trap Hack Attempts . | . . . . Triggered . | . . . . Disarmed . | . . . . Reprogrammed . | . . . . Reused . | . . . . Traps Extracted . | . . . . Installed . | . . . . Triggered . | . . . . Machines | -11 -10 -10 -10 ---------- Run | Yrd Mat Min Sub Machines Disabled 6 | . 1 4 1 Max in Single Turn 4 | . 1 4 1 Machines Repaired . | . . . . Machines Dismantled . | . . . . Machines Sabotaged . | . . . . Overloaded Fab Kills . | . . . . Hacking | -11 -10 -10 -10 --------- Run | Yrd Mat Min Sub Machines Accessed 10 | . 7 2 1 Terminals 7 | . 6 1 . Fabricators . | . . . . Repair Stations 1 | . 1 . . Recycling Units . | . . . . Scanalyzers . | . . . . Garrison Access . | . . . . Total Hacks 45 | . 32 4 9 Successful 31 | . 18 4 9 Failed 13 | . 13 . . Catastrophic 2 | . 2 . . Database Lockouts 1 | . 1 . . Manual 17 | . 15 2 . Terminals 33 | . 30 3 . Fabricators . | . . . . Repair Stations 2 | . 2 . . Recycling Units . | . . . . Scanalyzers . | . . . . Garrison Access . | . . . . Terminal Hacks 21 | . 9 3 9 Record 8 | . . . 8 Robot Analysis 3 | . 2 1 . Prototype ID Bank 1 | . 1 . . Open Door 1 | . . 1 . Branch Access Points 1 | . 1 . . Locate Traps 2 | . 2 . . Recall Investigation 1 | . 1 . . Zone Layout 3 | . 2 1 . Proto ID Catalog 1 | . . . 1 Fabricator Hacks . | . . . . Repair Station Hacks 2 | . 2 . . Scan Component 1 | . 1 . . Repair 1 | . 1 . . Recycling Unit Hacks . | . . . . Scanalyzer . | . . . . Garrison Access Hacks . | . . . . Unauthorized Hacks 8 | . 7 1 . Terminals 8 | . 7 1 . Track 1 | . . 1 . Botnet 2 | . 2 . . Skim 5 | . 5 . . Fabricators . | . . . . Repair Stations . | . . . . Recycling Units . | . . . . Scanalyzers . | . . . . Garrison Access . | . . . . Data Cores Recovered . | . . . . Used . | . . . . Hacking Detections 8 | . 7 1 . Full Trace Events . | . . . . Feedback Events . | . . . . Feedback Blocked . | . . . . Robot Schematics Acquired . | . . . . Robots Built . | . . . . Authchips . | . . . . Time . | . . . . Total Robot Build Rating . | . . . . Part Schematics Acquired . | . . . . Parts Built . | . . . . Authchips . | . . . . Time . | . . . . Total Part Build Rating . | . . . . Part Studies Acquired . | . . . . Parts Repaired 1 | . 1 . . Time 26 | . 26 . . Parts Recycled . | . . . . Recycled Matter . | . . . . Retrieved Matter . | . . . . Retrieved Components . | . . . . Parts Scanalyzed . | . . . . Part Schematics Acquired . | . . . . Parts Damaged . | . . . . Bothacking | -11 -10 -10 -10 ------------ Run | Yrd Mat Min Sub Used RIF Installer . | . . . . Robots Hacked . | . . . . Non-combat . | . . . . Combat . | . . . . Robot Hacks Applied . | . . . . Relay Couplers Released . | . . . . Fabnet Peak Effective % . | . . . . Robots Rewired . | . . . . Allies Hacked . | . . . . Hacks Repelled . | . . . . Allies | -11 -10 -10 -10 -------- Run | Yrd Mat Min Sub Total Allies 3 | . . 3 . Largest Group 3 | . . 3 2 Highest-Rated Group 40 | . . 40 24 Highest-Rated Ally 16 | . . 16 16 Total Orders . | . . . . Ally Attacks 41 | . . 25 16 Total Damage 443 | . . 248 195 Kills 5 | . . 4 1 Allies Corrupted . | . . . . Allies Melted . | . . . . Intel | -11 -10 -10 -10 ------- Run | Yrd Mat Min Sub Active Infowar (turns) 2059 | 145 521 877 516 Sensors 1157 | . 241 400 516 Terrain 809 | 145 280 384 . Seismic 93 | . . 93 . Robot Analysis Total 3 | . 2 1 . Derelict Logs Recovered 3 | . . 1 2 Drone Launches . | . . . . Drone Recoveries . | . . . . Exploration | -11 -10 -10 -10 ------------- Run | Yrd Mat Min Sub Turns Passed 3683 | 268 692 1037 1686 Spaces Moved 2074 | 95 437 632 910 Core 93 | 87 5 1 . Treads 1115 | . . 205 910 Legs 1 | . . 1 . Wheels 865 | 8 432 425 . Hover . | . . . . Flight . | . . . . Fastest Speed 50 | 50 90 100 160 Average Speed 143 | 212 102 121 172 Slowest Speed 550 | 250 500 550 240 Overloaded Moves . | . . . . Propulsion Burnouts . | . . . . Robots Hopped . | . . . . Potential Cave-ins . | . . . . Cave-ins Triggered . | . . . . Exploration Rate (%) 53 | 6 68 89 49 Regions Visited 3 Branch Regions 2 Pre-discovered Areas 2 | . . . 2 Known Exits Taken 1 | . 1 . . Unknown Exits Taken 2 | 1 . 1 . Scrap Searched 11 | . . 2 9 Spaces Dug 16 | . 1 . 15 Terrain Destroyed 103 | . 1 35 67 Melee . | . . . . Projectile 1 | . 1 . . AOE 102 | . . 35 67 Terrain Rammed . | . . . . Walls Destroyed . | . . . . Machines Disabled . | . . . . Actions | -11 -10 -10 -10 --------- Run | Yrd Mat Min Sub Total 2598 | 126 617 861 994 Wait 254 | . 123 129 2 Move 2071 | 94 436 631 910 Hop . | . . . . Pick Up 44 | 8 8 17 11 Fast Attach 25 | 7 12 3 3 Attach 13 | . 1 8 4 Detach 5 | . . 3 2 Swap 34 | . 9 14 11 Drop 31 | . 1 16 14 Fire 97 | 17 27 40 13 Melee 17 | . . . 17 Ram . | . . . . Kick . | . . . . Crush . | . . . . Escape Stasis . | . . . . Rewire . | . . . . Trap . | . . . . Miscellaneous 7 | . . . 7 Route ------- -11/Scrapyard -10/Materials (discovered 3 exits: *Mat / *Min x2) -10/Mines (discovered 3 exits: *Mat x2 / *Sub) -10/Subcaves (discovered 3 exits: *Mat x2 / Rec) History --------- Turn | Location | Event 42 | -11/Scrapyard | Discovered new exit (range 15) 269 | -11/Scrapyard | Entered Materials 270 | -10/Materials | Met a group of wandering Federalists 306 | -10/Materials | Build established: Mutant 587 | -10/Materials | Identified exit to Mines 644 | -10/Materials | Discovered new exit (range 15) 647 | -10/Materials | Central database locked down 652 | -10/Materials | Identified exit to Materials 707 | -10/Materials | Learned location of 1 exit from Storage 751 | -10/Materials | Learned 2 Storage zone layouts 786 | -10/Materials | Loaded intel: 8 trap records 791 | -10/Materials | Repaired Assault Rifle? 810 | -10/Materials | Learned location of 1 exit from Storage 824 | -10/Materials | Learned 4 Materials zone layouts 835 | -10/Materials | Learned 4 Subcaves zone layouts 961 | -10/Materials | Entered Mines 968 | -10/Mines | Discovered exit to Materials (range 14) 1067 | -10/Mines | Core integrity fell below 50% 1112 | -10/Mines | Lost 4 parts (1p1n1u1w) 1160 | -10/Mines | Assisted by bots powering up and referring to "LRC-V3" 1176 | -10/Mines | Assembled infested the area 1402 | -10/Mines | Core integrity fell below 20% 1486 | -10/Mines | Found a damaged Exp. Sensor Array with a note attached 1488 | -10/Mines | Found Prototype Device 1489 | -10/Mines | Identified Exp. Sensor Array 1522 | -10/Mines | Discovered exit to Materials (range 7) 1610 | -10/Mines | Met a Derelict shopkeep closing up shop 1691 | -10/Mines | Received a Rocket Launcher from a helpful Derelict 1708 | -10/Mines | Learned Materials security intel 1994 | -10/Mines | Discovered new exit (range 3) 1998 | -10/Mines | Entered Subcaves 1998 | -10/Subcaves | Accompanied by 2 allies 1999 | -10/Subcaves | Approached by a straggling Scientist 1999 | -10/Subcaves | Identified exit to Recycling 1999 | -10/Subcaves | Identified exit to Materials 2102 | -10/Subcaves | Learned location of Zion (-7) 2102 | -10/Subcaves | Met a Zionite searching for "candidates" 2491 | -10/Subcaves | Learned location of 1 exit from Materials 2639 | -10/Subcaves | Disturbed a concealed Subdweller 2837 | -10/Subcaves | Visited 4L-MR0's lab 2857 | -10/Subcaves | Found Tower Shield 3078 | -10/Subcaves | A Subdweller sparked back to life 3078 | -10/Subcaves | A Subdweller sparked back to life 3078 | -10/Subcaves | A Subdweller sparked back to life 3111 | -10/Subcaves | Found Flightbrick 3335 | -10/Subcaves | Attached Tower Shield, gained temporary slots: Power, Propulsion x2, Utility x2, Weapon x2 3660 | -10/Subcaves | Build established: Derelict-Tank 3680 | -10/Subcaves | Discovered exit to Materials (range 14) 3684 | -10/Subcaves | Destroyed by H3-630(R) with Subdweller Beam Cannon Last Messages --------------- 03348_ Acquired Flightbrick. 03349_ Subatomizers dissect the Riot Gun. 03357_ Acquired Sub. Beam Cannon. 03360_ Subatomizers dissect the Riot Gun. 03360_ Acquired 10 matter. 03368_ Acquired Grenade Launcher. U7-5KQ(c): "I think it's somewhere east of here" U7-5KQ(c): "I think it's somewhere southeast of here" 03506_ Dropped Exp. Sensor Array. 03511_ Acquired 10 matter. 03518_ Acquired EM Pulse Cannon. U7-5KQ(c): "I think it's somewhere southeast of here" 03680_ EXIT=FOUND: MATERIALS 03680_ 46-XJ7(R) destroyed. U7-5KQ(c): "I think it's somewhere southeast of here" 03683_ BE-HX7(R) destroyed. 03683_ IU-TX3(R) destroyed. Map ----- +----------------------------------------------------+ | ######??????## ?????????????????????????????? | | # #?????## ??????????????????????????????? | | #????? ???????????????????????????????? | | #??????? ##??????????????????????????????? | | ##???????? ##?????????????????????????????? | | #????####?# #?????????????????????????????? | | #???## ### ##????????????????????????????? | | # ##??# ##??? ##?# | | # #### ##?? #?## < | | # ##?# #??# ## | | # #?# #??# ## # | | ## ## ##? #??## ## ####### | | ## ###### ##?? #??## ## ##????#? | | %!##????##### ###### ##?## ## ####### | | [ #?????????### ## # #?## ## # | | ??????????# ### ## # | | ?????????# ## ## ?? | | ????????# # ### # ### # ## ? | | ##???????# #### ##?# ###### | | ##????????## c##? #??# ##????# | | ########??????????## ### ##### #??####????##? | | ???????????????????# ## #??## #?????????##?? | | ???????????????????# # ##???#####?????????#?? | | ???????????????????## #??????????????????#??? | | ????????????????????#### #??????????????????#??? | | ???????????????????????##@ #??????????????????#?? | | ????????????????????????# #????????????????##?? | | ???????????????????????? ???????????????#??? | | ???????????????????????? #?????????????#??? | | ??????????????????????? % ##?????????????#??? | | ??????????????????????? !% #??????????????##?? | | ?????????????????????? ???????????????##? | | ?????????????????????? ###?????????????????? | | ????????????????????? & ???????????????????? | | ?????????????????????R # "???????????????????? | | ???????????????????? ? " ##??????????????????? | | ???????????????????? # ?" #???????????????????? | | ??????????????????? # ?#" "#???????????????????? | | ??????????????????? ?##??<""#???????????????????? | | ??????????????????????????? ?????????????????????? | | ?????????????????????????????????????????????????? | | ?????????????????????????????????????????????????? | | ?????????????????????????????????????????????????? | | ?????????????????????????????????????????????????? | | ?????????????????????????????????????????????????? | | ?????????????????????????????????????????????????? | | ?????????????????????????????????????????????????? | | ?????????????????????????????????????????????????? | | ?????????????????????????????????????????????????? | | ?????????????????????????????????????????????????? | +----------------------------------------------------+ Best States ------------- Heat Dissipation 35 Energy Generation 14 Energy Capacity 250 Matter Stores 300 Matter Capacity 300 Sight Range 16 Robot Scan Range 20 Terrain Scan Range 16 Terrain Scan Density 10 Armor Coverage 2800 Weapon Shielding 33 Evasion (%) 50 Recoil Reduction 2 Item Schematics ----------------- None Robot Schematics ------------------ None Fabricated ------------ Nothing Repaired ---------- Assault Rifle | 13% | -10/Materials Studied --------- None Alien Tech Used ----------------- None Achievements -------------- I Survived The Infestation Mistaken Identity Turtlemind Challenges ------------ None Game ------ Seed HeavyShadingBay Manual? 0 Play Time 00:56:19 Cumulative 60.7 hours Start 2025.11.07 @ 23:41:18 End 2025.11.08 @ 00:49:35 Sessions 6 Manual Loads 0 Difficulty Rogue Special Mode None Game No. 21 Rogue 20 Adventurer 1 Explorer 0 Win Type - Total 2 Types 1/0/1/0/0/0/0/0/0/0 Lore% 27 Gallery% 35 Achievement% 30 Wizard Run 0 Options --------- Layout 2 ASCII 0 Keyboard 1 Movement Vi Keybinds 1 Fullscreen 2 Font 32/Terminus Map View 50x44 Zoom Use 0% Tactical HUD 1 Map Filters NONE Filters NONE Steam 1 RUN: d23d04af-def4-456c-894b-6be91d689277